bitfinex/quotes_SOLUSD_20220118
["timestamp","ask_amount","ask_price","bid_price","bid_amount"]
[1642534545537,128.70407257,137.05,136.99,0.25]
[1642534545733,0.25,137.04,136.97,10.9522]
[1642534545934,40.1353,137.04,136.95,2.919]
[1642534546134,2.919,137.03,136.96,0.25]
[1642534546334,38.07543788,137.02,136.96,0.25]
[1642534547234,2.919,137.03,136.96,0.25]
[1642534547435,35.68644824,137.04,136.96,0.25]
[1642534547935,35.68644824,137.04,136.96,11.203]
[1642534548135,44.58472263,137.03,136.96,11.203]
[1642534548539,6.25,137.02,136.96,0.25]
[1642534548837,75.999,137.01,136.92,4.97482409]
[1642534549036,75.999,137.01,136.92,2.05582409]
[1642534549037,16.47,137.0,136.92,2.05582409]
[1642534549237,58.49953963,136.98,136.92,2.05582409]
[1642534549442,54.48013963,136.98,136.9,2.05582409]
[1642534549639,54.48013963,136.98,136.91,29.55381219]
[1642534550240,54.48013963,136.98,136.92,0.25]
[1642534550441,47.54213963,136.98,136.92,11.2062]
[1642534550639,47.54213963,136.98,136.92,10.9562]
[1642534550839,47.54213963,136.98,136.93,0.25]
[1642534552641,47.54213963,136.98,136.92,10.9562]
[1642534552840,6.0,136.97,136.92,10.9562]
[1642534553740,6.0,136.97,136.93,0.25]
[1642534554841,6.0,136.98,136.93,0.25]
[1642534555742,38.20377996,136.97,136.93,0.25]
[1642534557046,6.0,136.98,136.93,11.2054]
[1642534557248,6.0,136.98,136.94,0.25]
[1642534563383,6.0,136.98,136.94,11.2046]
[1642534563582,6.0,136.98,136.94,10.9546]
[1642534566586,5.85637354,136.98,136.94,10.9546]
[1642534569389,5.85637354,136.98,136.93,10.9554]
[1642534569789,5.85637354,136.98,136.94,0.25]
[1642534571497,5.85637354,136.98,136.94,11.2045]
[1642534571691,5.85637354,136.98,136.94,10.9545]
[1642534574194,5.85637354,136.98,136.95,0.25]
[1642534574395,6.06439993,136.97,136.95,0.25]
[1642534578899,5.85637354,136.98,136.95,0.25]
[1642534579399,4.95404824,137.01,136.95,11.2039]
[1642534579600,24.0203,137.01,136.95,10.9539]
[1642534579798,24.0203,137.01,136.96,36.82188167]
[1642534581399,24.0203,137.01,136.97,10.9521]
[1642534586306,2.919,137.02,136.97,10.9521]
[1642534586505,2.03404824,137.03,136.98,0.25]
[1642534586705,2.03404824,137.03,136.99,10.9497]
[1642534587108,2.03404824,137.03,137.0,0.25]
[1642534587608,2.03404824,137.05,137.0,0.25]
[1642534587806,2.03404824,137.05,137.01,10.9487]
[1642534588008,2.03404824,137.05,137.02,2.919]
[1642534588207,2.03404824,137.05,137.02,3.169]
[1642534588411,2.03404824,137.05,137.02,4.95805272]
[1642534588608,2.03404824,137.05,137.02,33.73962307]
[1642534589010,4.14046947,137.08,137.03,10.9453]
[1642534589011,2.03404824,137.07,137.03,10.9453]
[1642534589209,2.03404824,137.07,137.04,0.25]
[1642534590008,2.03404824,137.07,137.05,10.9432]
[1642534590209,4.14046947,137.1,137.05,10.9432]
[1642534590210,2.03404824,137.1,137.06,0.25]
[1642534591311,2.03404824,137.1,137.05,34.92486535]
[1642534591513,77.14759083,137.12,137.07,10.9437]
[1642534591712,0.25,137.11,137.07,10.9437]
[1642534592742,29.62834824,137.12,137.07,10.9437]
[1642534592941,4.14046947,137.15,137.08,33.48962307]
[1642534593241,4.14046947,137.15,137.1,10.939]
[1642534593643,4.14046947,137.15,137.11,0.25]
[1642534594049,49.1130496,137.15,137.1,10.9415]
[1642534594244,52.0290496,137.15,137.1,10.9415]
[1642534594446,49.1130496,137.15,137.1,10.9415]
[1642534594645,2.916,137.14,137.1,10.9415]
[1642534594845,8.916,137.16,137.1,10.9415]
[1642534595247,8.916,137.16,137.11,0.25]
[1642534595445,6.0,137.16,137.12,10.9395]
[1642534595947,24.9827,137.17,137.12,10.9395]
[1642534596145,2.916,137.16,137.12,10.9395]
[1642534597552,27.8987,137.17,137.12,10.9395]
[1642534597751,0.25,137.16,137.12,10.9395]
[1642534597949,27.8987,137.17,137.12,10.9395]
[1642534599150,0.25,137.16,137.12,10.9395]
[1642534599951,0.25,137.16,137.11,10.941]
[1642534600153,2.916,137.15,137.11,10.941]
[1642534600551,6.25,137.14,137.06,2.916]
[1642534600751,44.13535492,137.13,137.05,62.98644821]
[1642534600953,44.13535492,137.13,137.06,6.0]
[1642534601353,2.916,137.13,137.06,6.0]
[1642534601552,2.916,137.13,137.07,10.9431]
[1642534601752,2.916,137.13,137.08,0.25]
[1642534601952,25.8664,137.14,137.08,0.25]
[1642534602153,25.8664,137.14,137.07,0.25]
[1642534603457,25.8664,137.14,137.08,10.9433]
[1642534603659,3.166,137.14,137.08,37.49109197]
[1642534603857,2.916,137.14,137.09,0.25]
[1642534604057,2.916,137.15,137.09,0.25]
[1642534604257,2.916,137.16,137.09,0.25]
[1642534605157,0.25,137.15,137.09,0.25]
[1642534605556,2.276,137.16,137.11,35.12559549]
[1642534607360,13.2184,137.16,137.11,35.12559549]
[1642534608260,2.276,137.16,137.11,35.12559549]
[1642534608861,2.276,137.16,137.1,10.9419]
[1642534609059,0.25,137.15,137.1,10.9419]
[1642534609261,0.25,137.15,137.09,0.25]
[1642534609461,0.25,137.15,137.08,10.9428]
[1642534609662,6.25,137.15,137.08,10.9428]
[1642534609861,46.49636198,137.15,137.08,10.9428]
[1642534610464,57.43966198,137.15,137.08,10.9428]
[1642534610664,57.43966198,137.15,137.09,0.25]
[1642534611063,57.18966198,137.15,137.09,0.25]
[1642534611466,57.18966198,137.15,137.09,11.1926]
[1642534612967,0.25,137.14,137.09,0.25]
[1642534613165,0.25,137.14,137.08,0.25]
[1642534613365,11.1939,137.14,137.08,0.25]
[1642534614067,33.7391,137.14,137.08,0.25]
[1642534614565,33.7391,137.14,137.08,11.1934]
[1642534614768,36.6551,137.14,137.06,8.916]
[1642534614967,6.0,137.13,137.04,2.916]
[1642534615165,10.9475,137.11,137.01,1.78905272]
[1642534615365,2.918,137.1,137.01,1.78905272]
[1642534615564,8.918,137.1,137.03,10.9475]
[1642534615767,38.55829576,137.09,137.03,10.9475]
[1642534615964,38.80829576,137.09,137.03,10.9475]
[1642534616567,49.75639576,137.09,137.04,0.25]
[1642534616967,11.1981,137.09,137.04,0.25]
[1642534617167,25.7031,137.1,137.04,11.1966]
[1642534617366,2.918,137.13,137.04,12.98565272]
[1642534617566,27.5337,137.16,137.05,6.0]
[1642534617767,27.5337,137.16,137.06,47.1943]
[1642534617965,27.5337,137.16,137.07,17.30387337]
[1642534618165,0.25,137.14,137.08,3.166]
[1642534618368,50.93919818,137.14,137.08,11.1923]
[1642534618767,48.02319818,137.14,137.08,11.1923]
[1642534620270,2.916,137.13,137.08,11.1923]
[1642534621070,13.8591,137.15,137.08,11.1923]
[1642534621470,2.916,137.15,137.08,11.1923]
[1642534621671,2.916,137.15,137.1,10.9406]
[1642534621874,28.77706947,137.17,137.1,23.66310242]
[1642534622272,28.77706947,137.17,137.11,0.25]
[1642534622472,28.77706947,137.17,137.1,10.9406]
[1642534622473,2.916,137.16,137.1,10.9406]
[1642534623072,0.25,137.15,137.1,10.9406]
[1642534623473,48.38513669,137.15,137.1,10.9406]
[1642534624673,0.25,137.15,137.1,10.9406]
[1642534626980,13.8583,137.16,137.09,10.9427]
[1642534626981,13.6083,137.16,137.09,10.9427]
[1642534627181,13.6083,137.16,137.09,0.25]
[1642534628180,0.25,137.15,137.09,0.25]
[1642534628380,11.1931,137.15,137.09,0.25]
[1642534628581,0.25,137.15,137.09,0.25]
[1642534628982,2.666,137.16,137.09,0.25]
[1642534629180,52.85496947,137.17,137.1,4.70505272]
[1642534629592,52.85496947,137.17,137.11,0.25]
[1642534629983,48.7145,137.17,137.11,0.25]
[1642534630182,86.61992687,137.17,137.11,0.25]
[1642534630583,86.61992687,137.17,137.12,10.9399]
[1642534630784,86.61992687,137.17,137.13,0.25]
[1642534630983,86.61992687,137.17,137.09,2.916]
[1642534631284,3.166,137.16,137.07,10.47]
[1642534631483,9.166,137.16,137.09,0.25]
[1642534631684,10.9436,137.15,137.09,0.25]
[1642534631884,2.916,137.14,137.09,0.25]
[1642534632089,3.166,137.14,137.09,0.25]
[1642534632485,42.8971938,137.14,137.08,0.25]
[1642534632886,53.8408938,137.14,137.08,11.1935]
[1642534633514,42.6471938,137.14,137.08,11.1935]
[1642534633713,0.25,137.13,137.08,11.1935]
[1642534635414,2.916,137.14,137.08,11.1935]
[1642534635612,2.916,137.15,137.08,12.98255272]
[1642534635913,0.25,137.14,137.09,20.80179872]
[1642534636112,0.25,137.14,137.1,10.941]
[1642534636312,0.25,137.14,137.1,11.191]
[1642534638312,48.901,137.17,137.1,15.89605272]
[1642534639114,24.2644,137.17,137.1,15.89605272]
[1642534639314,7.05646947,137.18,137.1,15.89605272]
[1642534639616,7.42268193,137.19,137.13,10.9389]
[1642534639819,24.9897,137.18,137.14,0.25]
[1642534640015,27.9057,137.18,137.14,0.25]
[1642534640216,27.9057,137.18,137.14,36.93613224]
[1642534640416,2.916,137.18,137.14,36.93613224]
[1642534641018,0.36621246,137.19,137.14,36.93613224]
[1642534641820,90.38601246,137.19,137.13,10.9389]
[1642534642020,93.55201246,137.19,137.13,10.9389]
[1642534642819,47.68205511,137.18,137.12,2.916]
[1642534643120,13.8573,137.17,137.12,2.916]
[1642534643320,11.1913,137.17,137.12,2.916]
[1642534643919,11.1913,137.17,137.09,2.916]
[1642534644121,34.2042,137.17,137.1,34.84216329]
[1642534644419,23.0129,137.17,137.11,11.1911]
[1642534644618,123.67805511,137.18,137.11,11.1911]
[1642534645918,134.61865511,137.18,137.11,11.1911]
[1642534646119,0.25,137.17,137.11,11.1911]
[1642534647323,11.1915,137.17,137.11,0.25]
[1642534647525,33.8549,137.17,137.09,2.916]
[1642534647723,33.8549,137.17,137.1,0.25]
[1642534647923,2.916,137.16,137.1,0.25]
[1642534648524,2.916,137.16,137.1,11.1918]
[1642534648723,0.25,137.15,137.1,11.1918]
[1642534649122,2.916,137.16,137.1,11.1918]
[1642534649326,36.5209,137.17,137.1,11.1918]
[1642534649524,0.25,137.16,137.1,10.9418]
[1642534649928,11.1922,137.16,137.1,10.9418]
[1642534650230,0.25,137.16,137.1,10.9418]
[1642534650526,23.8294,137.17,137.1,10.9418]
[1642534650926,23.8294,137.17,137.11,0.25]
[1642534651130,34.7708,137.17,137.12,23.09756011]
[1642534651629,23.8294,137.17,137.12,23.09756011]
[1642534651832,27.96986947,137.17,137.12,23.09756011]
[1642534652431,23.8294,137.17,137.12,34.03766011]
[1642534653136,20.9134,137.17,137.12,34.03766011]
[1642534653337,20.9134,137.17,137.13,0.25]
[1642534654337,31.8548,137.17,137.13,0.25]
[1642534654941,20.9134,137.17,137.13,0.25]
[1642534655941,2.916,137.18,137.13,0.25]
[1642534656141,10.50668193,137.19,137.13,6.721]
[1642534656343,4.50668193,137.19,137.13,9.637]
[1642534656542,4.50668193,137.19,137.13,20.5765]
[1642534657041,0.36621246,137.19,137.13,20.5765]
[1642534658745,2.916,137.18,137.13,17.6605]
[1642534658944,3.53221246,137.19,137.13,17.6605]
[1642534659346,14.47191246,137.19,137.13,17.6605]
[1642534659567,14.47191246,137.19,137.13,0.25]
[1642534659967,87.55191246,137.19,137.12,0.25]
[1642534660467,10.9405,137.18,137.11,35.1906]
[1642534660666,0.36621246,137.19,137.12,2.916]
[1642534660871,0.36621246,137.19,137.13,1.78905272]
[1642534661066,0.36621246,137.19,137.14,2.916]
[1642534661268,0.36621246,137.19,137.13,2.916]
[1642534661468,0.36621246,137.19,137.14,37.99026099]
[1642534662267,2.916,137.21,137.16,10.9367]
[1642534662469,4.32409604,137.22,137.16,17.5167]
[1642534662667,4.32409604,137.22,137.17,0.25]
[1642534663469,4.32409604,137.22,137.18,10.9332]
[1642534663667,4.32409604,137.22,137.19,0.25]
[1642534663870,0.18362657,137.22,137.19,0.25]
[1642534664767,6.06439993,137.21,137.18,10.9332]
[1642534665868,6.06439993,137.21,137.18,10.4332]
[1642534666072,6.06439993,137.21,137.17,10.9363]
[1642534666968,43.9134643,137.21,137.17,10.9363]
[1642534667176,43.9134643,137.21,137.16,10.937]
[1642534667373,43.9134643,137.21,137.16,11.187]
[1642534667775,0.25,137.2,137.15,24.128]
[1642534668076,0.25,137.2,137.15,23.4949]
[1642534668280,0.25,137.2,137.15,34.4329]
[1642534670881,0.25,137.2,137.15,10.938]
[1642534671382,64.87506437,137.21,137.15,10.938]
[1642534671580,64.87506437,137.21,137.16,0.25]
[1642534671780,61.96006437,137.21,137.16,0.25]
[1642534672183,72.89826437,137.21,137.13,2.915]
[1642534672383,19.385,137.2,137.06,25.45116099]
[1642534672581,19.385,137.2,137.06,10.47]
[1642534672582,42.6423,137.2,137.06,10.47]
[1642534672783,0.25,137.19,137.06,10.47]
[1642534672981,2.916,137.18,137.06,10.47]
[1642534673183,47.04616654,137.17,137.07,36.60225537]
[1642534673382,2.917,137.16,137.08,10.47]
[1642534673587,24.111,137.21,137.09,6.0]
[1642534673784,4.14046947,137.2,137.1,13.635]
[1642534673981,4.14046947,137.2,137.11,6.0]
[1642534674182,75.996,137.19,137.11,6.0]
[1642534674386,53.832105,137.18,137.11,6.0]
[1642534674584,2.916,137.17,137.11,1.78905272]
[1642534674784,0.25,137.17,137.11,1.78905272]
[1642534675189,0.25,137.19,137.11,1.78905272]
[1642534675391,2.916,137.18,137.11,1.78905272]
[1642534675589,41.17941648,137.18,137.11,12.73015272]
[1642534675791,0.25,137.17,137.11,12.73015272]
[1642534676189,2.916,137.18,137.11,12.73015272]
[1642534676395,73.08,137.19,137.12,2.916]
[1642534676591,73.08,137.19,137.11,15.64615272]
[1642534676792,73.08,137.19,137.13,1.78905272]
[1642534677392,2.916,137.18,137.13,1.78905272]
[1642534677791,2.916,137.18,137.14,0.25]
[1642534677992,2.916,137.2,137.14,0.25]
[1642534678193,24.8677,137.21,137.14,0.25]
[1642534678392,0.18362657,137.22,137.14,2.03905272]
[1642534678592,6.18362657,137.22,137.14,2.03905272]
[1642534678794,0.18362657,137.22,137.14,2.03905272]
[1642534678995,6.18362657,137.22,137.14,12.97765272]
[1642534679194,29.12662657,137.22,137.14,12.97765272]
[1642534679895,6.18362657,137.22,137.15,6.0]
[1642534680097,6.18362657,137.22,137.17,10.9356]
[1642534680098,0.18362657,137.22,137.17,10.9356]
[1642534680499,0.18362657,137.22,137.18,10.2129336]
[1642534681502,0.18362657,137.22,137.18,21.1479336]
[1642534681701,0.18362657,137.22,137.19,0.25]
[1642534683102,0.18362657,137.22,137.19,11.1846]
[1642534683506,0.18362657,137.22,137.19,14.0996]
[1642534685009,0.18362657,137.22,137.2,6.0]
[1642534685208,0.18362657,137.22,137.21,0.25]
[1642534686432,0.18362657,137.22,137.21,10.933]
[1642534686628,0.18362657,137.22,137.21,6.0]
[1642534687228,0.18362657,137.22,137.2,0.25]
[1642534687428,0.18362657,137.22,137.19,6.25]
[1642534687627,6.06439993,137.21,137.2,10.9333]
[1642534687828,0.18362657,137.22,137.2,10.9333]
[1642534688028,0.18362657,137.22,137.21,6.0]
[1642534688229,0.18362657,137.22,137.21,6.25]
[1642534688627,0.18362657,137.22,137.21,17.1829]
[1642534688830,0.18362657,137.22,137.21,55.57420809]
[1642534690131,0.18362657,137.22,137.21,53.78515537]
[1642534695835,0.18362657,137.22,137.21,10.9329]
[1642534696035,0.18362657,137.22,137.2,10.9339]
[1642534696335,0.18362657,137.22,137.17,36.4445]
[1642534696537,0.18362657,137.22,137.18,6.0]
[1642534696835,0.18362657,137.22,137.19,40.66077972]
[1642534697045,0.18362657,137.22,137.2,6.0]
[1642534697236,0.18362657,137.22,137.19,0.25]
[1642534697434,0.18362657,137.22,137.19,11.1847]
[1642534697634,0.18362657,137.22,137.2,6.0]
[1642534698035,0.18362657,137.22,137.21,0.25]
[1642534698438,0.18362657,137.22,137.21,11.1831]
[1642534698638,0.18362657,137.22,137.21,18.97215272]
[1642534698837,0.18362657,137.22,137.21,12.97215272]
[1642534700239,0.18362657,137.22,137.21,18.97215272]
[1642534701239,0.18362657,137.22,137.21,8.03905272]
[1642534701440,0.18362657,137.22,137.21,0.25]
[1642534702041,0.18362657,137.22,137.19,6.25]
[1642534702243,6.06439993,137.21,137.19,6.25]
[1642534702739,6.06439993,137.21,137.19,0.25]
[1642534702939,6.06439993,137.21,137.2,6.0]
[1642534703140,6.06439993,137.21,137.19,1.78905272]
[1642534703339,6.06439993,137.21,137.2,0.25]
[1642534703540,6.06439993,137.21,137.2,6.25]
[1642534704142,6.06439993,137.21,137.2,0.25]
[1642534704340,6.06439993,137.21,137.18,0.25]
[1642534705545,6.06439993,137.21,137.18,12.97445272]
[1642534705846,6.06439993,137.21,137.19,6.0]
[1642534706243,6.06439993,137.21,137.2,0.25]
[1642534706444,0.18362657,137.22,137.2,0.25]
[1642534709550,0.18362657,137.22,137.2,6.25]
[1642534711349,0.18362657,137.22,137.2,8.03905272]
[1642534711551,0.18362657,137.22,137.2,2.03905272]
[1642534712551,0.18362657,137.22,137.2,0.25]
[1642534712855,6.2480265,137.22,137.2,0.25]
[1642534713252,6.2480265,137.22,137.18,6.25]
[1642534714252,6.2480265,137.22,137.18,17.1853]
[1642534714656,6.2480265,137.22,137.18,11.1853]
[1642534714852,6.2480265,137.22,137.19,6.0]
[1642534715257,6.2480265,137.22,137.2,0.25]
[1642534716256,6.2480265,137.22,137.19,0.25]
[1642534719457,6.2480265,137.22,137.19,11.1846]
[1642534721588,6.2480265,137.22,137.19,0.25]
[1642534721792,6.2480265,137.22,137.18,0.25]
[1642534722088,6.2480265,137.22,137.18,6.25]
[1642534722288,6.2480265,137.22,137.18,0.25]
[1642534722690,8.30914963,137.22,137.18,0.25]
[1642534722990,50.48785964,137.22,137.18,0.25]
[1642534724292,8.30914963,137.22,137.18,0.25]
[1642534725294,56.39327651,137.22,137.17,10.9356]
[1642534725493,56.39327651,137.22,137.16,13.385]
[1642534725695,56.39327651,137.22,137.14,2.915]
[1642534726095,2.06112313,137.21,137.15,6.0]
[1642534726495,26.12942313,137.21,137.15,6.0]
[1642534727196,26.12942313,137.21,137.16,0.25]
[1642534727396,26.12942313,137.21,137.16,11.187]
[1642534727995,26.12942313,137.21,137.16,0.25]
[1642534728395,26.12942313,137.21,137.16,3.165]
[1642534728596,26.12942313,137.21,137.16,14.1021]
[1642534728995,26.12942313,137.21,137.16,56.39155895]
[1642534730013,26.12942313,137.21,137.16,53.47655895]
[1642534730196,26.12942313,137.21,137.16,11.1871]
[1642534730398,24.0683,137.21,137.16,0.25]
[1642534730797,24.0683,137.21,137.15,10.9378]
[1642534730995,24.0683,137.21,137.16,0.25]
[1642534731396,2.06112313,137.2,137.16,0.25]
[1642534731596,8.06112313,137.2,137.16,10.937]
[1642534731997,6.0,137.2,137.16,10.937]
[1642534732199,26.12942313,137.21,137.16,10.937]
[1642534732998,2.06112313,137.2,137.17,0.25]
[1642534733207,6.06439993,137.19,137.17,11.1863]
[1642534733402,6.06439993,137.19,137.17,10.9363]
[1642534736906,6.06439993,137.19,137.18,0.25]
[1642534737204,26.12942313,137.21,137.18,0.25]
[1642534737606,2.06112313,137.21,137.18,17.1654]
[1642534737907,2.06112313,137.21,137.18,23.1654]
[1642534738610,0.18362657,137.22,137.18,23.1654]
[1642534738806,0.18362657,137.22,137.19,4.70405272]
[1642534739105,0.18362657,137.22,137.2,52.16519902]
[1642534739306,0.18362657,137.22,137.2,52.41519902]
[1642534743510,0.18362657,137.22,137.2,11.1824]
[1642534745811,0.18362657,137.22,137.2,14.0974]
[1642534746814,0.18362657,137.22,137.2,11.1824]
[1642534747911,0.18362657,137.22,137.2,14.0974]
[1642534750022,3.21582653,137.22,137.2,2.915]
[1642534750223,6.2480265,137.22,137.2,2.915]
[1642534751222,6.2480265,137.22,137.17,10.9362]
[1642534751421,6.2480265,137.22,137.17,17.1862]
[1642534752521,6.2480265,137.22,137.17,6.25]
[1642534754127,6.2480265,137.22,137.17,17.1861]
[1642534754927,6.2480265,137.22,137.17,11.1861]
[1642534757830,6.2480265,137.22,137.17,12.97515272]
[1642534758029,6.2480265,137.22,137.18,6.0]
[1642534758232,6.2480265,137.22,137.19,23.64875039]
[1642534758429,6.2480265,137.22,137.19,25.43780311]
[1642534758630,0.18362657,137.22,137.2,6.0]
[1642534758833,0.18362657,137.22,137.2,7.78905272]
[1642534759028,0.18362657,137.22,137.21,2.03905272]
[1642534759230,0.18362657,137.22,137.21,12.97165272]
[1642534759429,0.18362657,137.22,137.21,17.1826]
[1642534761257,0.18362657,137.22,137.21,0.25]
[1642534762057,0.18362657,137.22,137.2,6.25]
[1642534762658,6.06439993,137.21,137.2,6.25]
[1642534763559,6.06439993,137.21,137.2,0.25]
[1642534763758,6.06439993,137.21,137.2,6.0]
[1642534763962,6.06439993,137.21,137.17,2.915]
[1642534764362,16.62339993,137.21,137.14,3.80763038]
[1642534764559,0.25,137.2,137.13,10.9395]
[1642534764762,2.916,137.19,137.13,10.9395]
[1642534765159,47.77801333,137.19,137.13,10.9395]
[1642534765658,47.77801333,137.19,137.14,6.25]
[1642534766258,2.916,137.19,137.14,6.25]
[1642534767861,79.08,137.18,137.14,0.25]
[1642534768262,79.08,137.18,137.12,6.25]
[1642534768965,6.0,137.18,137.12,6.25]
[1642534769165,6.0,137.18,137.12,17.1902]
[1642534769770,2.916,137.19,137.12,17.1902]
[1642534771167,23.3528,137.2,137.12,20.1062]
[1642534771869,59.11551588,137.2,137.12,20.1062]
[1642534773170,0.25,137.19,137.12,20.1062]
[1642534773371,2.916,137.18,137.12,20.1062]
[1642534774771,3.166,137.19,137.12,20.1062]
[1642534774978,2.916,137.19,137.12,20.1062]
[1642534775974,26.2688,137.2,137.12,20.1062]
[1642534776173,0.25,137.19,137.12,20.1062]
[1642534776575,2.916,137.2,137.13,10.47]
[1642534776778,2.06112313,137.21,137.16,10.9354]
[1642534777275,25.5415497,137.22,137.18,36.56163349]
[1642534777479,2.2447497,137.22,137.18,36.56163349]
[1642534777676,2.2447497,137.22,137.19,0.25]
[1642534777878,6.06439993,137.21,137.19,0.25]
[1642534778679,6.06439993,137.21,137.17,0.25]
[1642534778877,8.97939993,137.21,137.13,13.385]
[1642534779079,8.97939993,137.21,137.14,43.71163993]
[1642534779280,6.06439993,137.21,137.15,2.915]
[1642534779479,6.06439993,137.21,137.16,10.47]
[1642534779782,6.06439993,137.21,137.17,2.915]
[1642534779982,0.18362657,137.22,137.18,6.0]
[1642534780180,0.18362657,137.22,137.2,9.10354904]
[1642534780582,0.18362657,137.22,137.21,0.25]
[1642534780783,0.18362657,137.22,137.19,0.25]
[1642534780983,6.06439993,137.21,137.19,0.25]
[1642534781181,6.06439993,137.21,137.18,0.25]
[1642534781382,6.06439993,137.21,137.17,10.47]
[1642534781583,6.06439993,137.21,137.17,52.16342935]
[1642534781783,6.06439993,137.21,137.18,2.03905272]
[1642534781982,0.18362657,137.22,137.18,4.95405272]
[1642534783085,0.18362657,137.22,137.18,15.88955272]
[1642534785087,0.18362657,137.22,137.18,4.95405272]
[1642534785485,0.18362657,137.22,137.18,0.25]
[1642534785887,0.18362657,137.22,137.17,0.25]
[1642534786287,0.18362657,137.22,137.17,42.72853106]
[1642534787213,0.18362657,137.22,137.16,2.915]
[1642534787415,0.18362657,137.22,137.15,2.915]
[1642534787615,2.915,137.21,137.16,6.0]
[1642534787813,2.915,137.21,137.14,6.0]
[1642534788015,6.0,137.2,137.14,6.0]
[1642534788315,6.0,137.2,137.14,49.36307267]
[1642534788515,30.9626,137.2,137.15,0.25]
[1642534789115,24.9626,137.2,137.15,0.25]
[1642534789315,2.915,137.21,137.16,10.47]
[1642534789516,2.915,137.21,137.17,6.0]
[1642534789816,2.915,137.21,137.17,32.63468809]
[1642534790015,2.915,137.21,137.18,1.78905272]
[1642534790217,6.06439993,137.2,137.18,5.24116902]
[1642534790617,6.06439993,137.2,137.18,3.4521163]
[1642534790817,0.18362657,137.22,137.18,3.4521163]
[1642534791216,0.18362657,137.22,137.19,0.25]
[1642534793420,0.18362657,137.22,137.18,6.3671163]
[1642534793618,0.18362657,137.22,137.18,3.4521163]
[1642534794820,0.18362657,137.22,137.19,0.25]
[1642534796122,6.06439993,137.21,137.19,0.25]
[1642534796322,14.01739993,137.21,137.18,0.25]
[1642534797025,14.01739993,137.21,137.17,0.25]
[1642534797221,14.01739993,137.21,137.16,0.25]
[1642534797421,14.01739993,137.21,137.16,6.25]
[1642534798825,6.06439993,137.21,137.16,6.25]
[1642534799226,6.06439993,137.21,137.16,8.03905272]
[1642534800829,6.06439993,137.21,137.16,18.97605272]
[1642534804234,0.18362657,137.22,137.17,10.47]
[1642534804434,0.18362657,137.22,137.18,13.848]
[1642534804637,0.18362657,137.22,137.18,32.5346205]
[1642534804836,0.18362657,137.22,137.18,32.2846205]
[1642534805036,0.18362657,137.22,137.19,0.25]
[1642534805338,0.18362657,137.22,137.2,10.9338]
[1642534805868,0.18362657,137.22,137.21,0.25]
[1642534806666,0.18362657,137.22,137.2,0.25]
[1642534806867,0.18362657,137.22,137.2,3.165]
[1642534807468,0.18362657,137.22,137.21,10.9328]
[1642534807872,0.18362657,137.22,137.21,11.1828]
[1642534809471,0.18362657,137.22,137.21,51.82042119]
[1642534809670,0.18362657,137.22,137.21,11.1828]
[1642534809871,0.18362657,137.22,137.19,1.78905272]
[1642534810072,0.18362657,137.22,137.18,34.8425]
[1642534810574,0.18362657,137.22,137.18,10.47]
[1642534810774,0.18362657,137.22,137.19,39.53739121]
[1642534811278,0.18362657,137.22,137.2,0.25]
[1642534811474,0.18362657,137.22,137.2,3.165]
[1642534812074,6.2480265,137.22,137.2,3.165]
[1642534812775,0.18362657,137.22,137.2,0.25]
[1642534815978,6.06439993,137.21,137.2,11.1839]
[1642534816179,0.18362657,137.22,137.2,11.1839]
[1642534817786,0.18362657,137.22,137.2,0.25]
[1642534820685,0.18362657,137.22,137.2,11.1837]
[1642534821086,0.18362657,137.22,137.2,12.97275272]